bitfinex/quotes_BTCUSD_20240729
["timestamp","ask_amount","ask_price","bid_price","bid_amount"]
[1722292113216,0.23284067,67558.0,67557.0,0.0156684]
[1722292115748,0.14475283,67558.0,67557.0,0.0156684]
[1722292115925,0.16797409,67558.0,67557.0,0.0156684]
[1722292116130,0.14475283,67558.0,67557.0,0.0156684]
[1722292116330,0.14475283,67558.0,67555.0,0.13353335]
[1722292116526,0.028,67558.0,67557.0,0.01516205]
[1722292116732,0.24887971,67558.0,67555.0,0.13353335]
[1722292116930,0.13203848,67557.0,67555.0,0.13353335]
[1722292117159,0.13203848,67556.0,67555.0,0.13353335]
[1722292117559,0.13184293,67556.0,67555.0,0.13353335]
[1722292119124,0.15508507,67556.0,67555.0,0.13353335]
[1722292119346,0.16908507,67556.0,67555.0,0.1486954]
[1722292119548,0.18308507,67556.0,67555.0,0.01516205]
[1722292122454,0.13017144,67556.0,67555.0,0.01516205]
[1722292122663,0.1829065,67556.0,67555.0,0.01516205]
[1722292123075,0.27178296,67556.0,67555.0,0.01516205]
[1722292123295,0.27178296,67556.0,67554.0,0.01516205]
[1722292123498,0.1316851,67555.0,67554.0,0.01516205]
[1722292124813,0.1330182,67555.0,67554.0,0.01516205]
[1722292125704,0.37140953,67555.0,67554.0,0.01516205]
[1722292125947,0.43816191,67555.0,67554.0,0.01516205]
[1722292126437,0.43816191,67555.0,67554.0,0.00516205]
[1722292126438,1.39611999,67555.0,67554.0,0.00516205]
[1722292126645,1.39611999,67555.0,67550.0,0.00516205]
[1722292126646,0.289836,67551.0,67550.0,0.00516205]
[1722292126778,1.036315,67547.0,67542.0,0.01516205]
[1722292126979,1.67233104,67547.0,67543.0,0.01516205]
[1722292127191,1.53891681,67547.0,67543.0,0.01516205]
[1722292127388,1.56214275,67547.0,67543.0,0.01516205]
[1722292127624,1.69548314,67547.0,67543.0,0.01516205]
[1722292128010,1.56214275,67547.0,67543.0,0.01516205]
[1722292128417,1.6820162,67547.0,67543.0,0.01516205]
[1722292128617,1.8433076,67547.0,67543.0,0.01516205]
[1722292128823,1.64326382,67547.0,67543.0,0.01516205]
[1722292129018,1.81644985,67547.0,67543.0,0.01516205]
[1722292129416,1.84444985,67547.0,67543.0,0.01516205]
[1722292129590,1.69715844,67547.0,67543.0,0.01516205]
[1722292129747,1.71115844,67547.0,67543.0,0.01516205]
[1722292130749,1.56805905,67547.0,67543.0,0.01516205]
[1722292131162,1.55405905,67547.0,67543.0,0.01516205]
[1722292131390,1.56805905,67547.0,67543.0,0.01516205]
[1722292131602,1.55405905,67547.0,67543.0,0.01516205]
[1722292131777,1.57728553,67547.0,67543.0,0.01516205]
[1722292131980,1.59128553,67547.0,67543.0,0.01516205]
[1722292132197,1.6664903,67547.0,67543.0,0.01516205]
[1722292132394,1.56315205,67547.0,67543.0,0.01516205]
[1722292132591,1.57715205,67547.0,67543.0,0.01516205]
[1722292132784,1.56315205,67547.0,67543.0,0.01516205]
[1722292133072,1.55392557,67547.0,67543.0,0.01516205]
[1722292133409,1.53992557,67547.0,67543.0,0.01516205]
[1722292133590,1.56792557,67547.0,67543.0,0.01516205]
[1722292134216,1.69702496,67547.0,67543.0,0.01516205]
[1722292134556,1.71102496,67547.0,67543.0,0.01516205]
[1722292134911,1.69702496,67547.0,67543.0,0.01516205]
[1722292135131,1.71102496,67547.0,67543.0,0.01516205]
[1722292135541,1.71018661,67547.0,67543.0,0.01516205]
[1722292136167,1.73341309,67547.0,67543.0,0.01516205]
[1722292136782,1.83030063,67547.0,67543.0,0.01516205]
[1722292137395,1.82107415,67547.0,67543.0,0.01516205]
[1722292137616,1.80707415,67547.0,67543.0,0.01516205]
[1722292138123,1.82107415,67547.0,67543.0,0.01516205]
[1722292138558,1.82107415,67547.0,67538.0,0.07154355]
[1722292138762,1.82107415,67547.0,67542.0,0.01516205]
[1722292138976,1.82036219,67547.0,67542.0,0.01516205]
[1722292139193,1.52427219,67547.0,67543.0,0.01516205]
[1722292139606,1.41338465,67547.0,67543.0,0.01516205]
[1722292140327,1.27028526,67547.0,67543.0,0.01516205]
[1722292140733,1.29351192,67547.0,67543.0,0.01516205]
[1722292140939,1.27028526,67547.0,67543.0,0.01516205]
[1722292141358,1.26868715,67547.0,67543.0,0.01516205]
[1722292142284,1.27763434,67547.0,67543.0,0.01516205]
[1722292142487,1.36629992,67547.0,67543.0,0.01516205]
[1722292143347,1.36629992,67547.0,67538.0,0.07154355]
[1722292143551,1.19959992,67547.0,67543.0,0.01516205]
[1722292143754,1.19959992,67547.0,67544.0,0.01516205]
[1722292143962,1.19959992,67547.0,67546.0,0.078724]
[1722292143963,0.84240992,67547.0,67546.0,0.078724]
[1722292144129,1.13849992,67547.0,67546.0,0.08388605]
[1722292144314,1.16199386,67547.0,67546.0,0.00608605]
[1722292144516,1.13876779,67547.0,67546.0,0.000924]
[1722292146789,1.19321044,67547.0,67546.0,0.000924]
[1722292146993,1.27921044,67547.0,67546.0,0.000924]
[1722292147201,1.28186718,67547.0,67546.0,0.000924]
[1722292147354,1.36786718,67547.0,67546.0,0.000924]
[1722292147560,1.26521044,67547.0,67546.0,0.000924]
[1722292147758,1.43425536,67547.0,67546.0,0.000924]
[1722292147963,1.47148134,67547.0,67546.0,0.000924]
[1722292148411,1.53188134,67547.0,67546.0,0.000924]
[1722292148610,1.85013258,67547.0,67546.0,0.000924]
[1722292149642,1.82796925,67547.0,67546.0,0.000924]
[1722292149848,1.81396925,67547.0,67546.0,0.000924]
[1722292150309,1.82796925,67547.0,67546.0,0.000924]
[1722292150753,1.81396925,67547.0,67546.0,0.000924]
[1722292151001,1.81364102,67547.0,67546.0,0.000924]
[1722292151495,1.82983615,67547.0,67546.0,0.000924]
[1722292151908,2.13592615,67547.0,67546.0,0.000924]
[1722292152128,2.24346082,67547.0,67546.0,0.000924]
[1722292152515,2.24333702,67547.0,67546.0,0.000924]
[1722292153317,2.23849907,67547.0,67546.0,0.000924]
[1722292153511,2.24333702,67547.0,67546.0,0.000924]
[1722292153722,2.02339968,67547.0,67546.0,0.000924]
[1722292153943,2.10939968,67547.0,67546.0,0.000924]
[1722292154123,1.9604276,67547.0,67546.0,0.000924]
[1722292154317,2.09541387,67547.0,67546.0,0.000924]
[1722292155713,2.10025182,67547.0,67546.0,0.000924]
[1722292156147,2.24335121,67547.0,67546.0,0.000924]
[1722292156496,2.37627266,67547.0,67546.0,0.000924]
[1722292157475,2.24335121,67547.0,67546.0,0.000924]
[1722292157883,2.35304851,67547.0,67546.0,0.000924]
[1722292159704,2.36221056,67547.0,67546.0,0.000924]
[1722292160212,2.36704851,67547.0,67546.0,0.000924]
[1722292160537,2.23412523,67547.0,67546.0,0.000924]
[1722292160803,2.12236838,67547.0,67546.0,0.000924]
[1722292160967,2.2442478,67547.0,67546.0,0.000924]
[1722292161169,2.25340985,67547.0,67546.0,0.000924]
[1722292161375,2.38633723,67547.0,67546.0,0.000924]
[1722292161577,2.25340985,67547.0,67546.0,0.000924]
[1722292162139,2.23018043,67547.0,67546.0,0.000924]
[1722292164098,2.08769241,67547.0,67546.0,0.000924]
[1722292164312,2.09253036,67547.0,67546.0,0.000924]
[1722292164735,2.08769241,67547.0,67546.0,0.000924]
[1722292165348,2.09253036,67547.0,67546.0,0.000924]
[1722292166633,2.11575962,67547.0,67546.0,0.000924]
[1722292167407,2.12236822,67547.0,67546.0,0.000924]
[1722292167617,0.886842,67527.0,67526.0,0.009163]
[1722292167790,1.86023347,67527.0,67526.0,0.009163]
[1722292167993,1.72720553,67527.0,67526.0,0.009163]
[1722292168196,1.88514287,67527.0,67526.0,0.009163]
[1722292168560,1.11628895,67525.0,67524.0,8.86803934]
[1722292168733,1.88971451,67525.0,67524.0,8.86803934]
[1722292168933,1.80371451,67525.0,67524.0,8.86803934]
[1722292169134,1.88971451,67525.0,67524.0,8.86803934]
[1722292169335,2.11295185,67525.0,67524.0,8.86803934]
[1722292169939,1.87901451,67525.0,67524.0,8.86803934]
[1722292170147,1.96501451,67525.0,67524.0,8.86803934]
[1722292170708,1.96645769,67525.0,67524.0,8.86803934]
[1722292171561,1.91398643,67525.0,67524.0,8.86803934]
[1722292171760,1.97148494,67525.0,67524.0,8.86803934]
[1722292171962,2.12858433,67525.0,67524.0,8.86803934]
[1722292172388,2.12374638,67525.0,67524.0,8.86803934]
[1722292172769,2.12858433,67525.0,67524.0,8.86803934]
[1722292173558,2.11458433,67525.0,67524.0,8.86803934]
[1722292174204,2.12838083,67525.0,67524.0,8.86803934]
[1722292174707,2.25311583,67525.0,67524.0,8.86803934]
[1722292175625,2.13754288,67525.0,67524.0,8.86803934]
[1722292175827,2.14012094,67525.0,67524.0,8.86803934]
[1722292176130,2.14495889,67525.0,67524.0,8.86803934]
[1722292177620,2.13095889,67525.0,67524.0,8.86803934]
[1722292177815,2.15419509,67525.0,67524.0,8.86803934]
[1722292178001,2.13095889,67525.0,67524.0,8.86803934]
[1722292178337,2.14495889,67525.0,67524.0,8.86803934]
[1722292178540,2.14495889,67525.0,67524.0,8.79522234]
[1722292179715,1.99702155,67525.0,67524.0,8.79522234]
[1722292179980,2.0018595,67525.0,67524.0,8.79522234]
[1722292180714,2.00167888,67525.0,67524.0,8.79522234]
[1722292181955,2.00167888,67525.0,67524.0,8.79088334]
[1722292182927,1.99684093,67525.0,67524.0,8.79088334]
[1722292184225,1.99768556,67525.0,67524.0,8.79088334]
[1722292185259,2.14078495,67525.0,67524.0,8.79088334]
[1722292185479,2.07829384,67525.0,67524.0,8.79088334]
[1722292185855,2.1015312,67525.0,67524.0,8.79088334]
[1722292186359,2.1015312,67525.0,67524.0,8.79180734]
[1722292186567,2.1023712,67525.0,67524.0,8.79180734]
[1722292187280,2.10225742,67525.0,67524.0,8.79180734]
[1722292187483,2.07902006,67525.0,67524.0,8.79180734]
[1722292187962,1.93592067,67525.0,67524.0,8.79180734]
[1722292188180,1.87112067,67525.0,67524.0,8.79180734]
[1722292189808,1.87595862,67525.0,67524.0,8.79180734]
[1722292190471,1.96303402,67525.0,67524.0,8.79180734]
[1722292190636,1.96311445,67525.0,67524.0,8.79180734]
[1722292190834,2.10621384,67525.0,67524.0,8.79180734]
[1722292191703,2.0231765,67525.0,67524.0,8.79180734]
[1722292192040,2.10681445,67525.0,67524.0,8.79180734]
[1722292193131,2.01973906,67525.0,67524.0,8.76154734]
[1722292193512,2.10598791,67525.0,67524.0,8.76154734]
[1722292193689,2.2490873,67525.0,67524.0,8.76154734]
[1722292194047,2.27232466,67525.0,67524.0,8.76154734]
[1722292194448,2.48226181,67525.0,67524.0,8.63928735]
[1722292194686,2.56836754,67525.0,67524.0,8.57024649]
[1722292195047,2.56836754,67525.0,67524.0,8.54154649]
[1722292195250,3.04522606,67525.0,67524.0,7.66893456]
[1722292195452,3.02094442,67525.0,67524.0,7.65646426]
[1722292195659,3.04523875,67525.0,67524.0,7.65646426]
[1722292195810,3.00694361,67525.0,67524.0,7.65646426]
[1722292196217,3.02094361,67525.0,67524.0,7.63846426]
[1722292196421,3.02094361,67525.0,67524.0,7.55224426]
[1722292196681,3.00694361,67525.0,67524.0,7.55224426]
[1722292196859,3.00694361,67525.0,67524.0,7.54331726]
[1722292197212,3.01520447,67525.0,67524.0,7.54331726]
[1722292197423,3.00120447,67525.0,67524.0,7.54331726]
[1722292197839,3.01520447,67525.0,67524.0,7.54331726]
[1722292198015,2.98720447,67525.0,67524.0,7.54331726]
[1722292198395,3.00120447,67525.0,67524.0,7.53446743]
[1722292198591,3.00120447,67525.0,67524.0,7.50696841]
[1722292198592,3.17025447,67525.0,67524.0,7.50696841]
[1722292199451,3.17941652,67525.0,67524.0,7.36933841]
[1722292199654,3.17941652,67525.0,67524.0,7.29439619]
[1722292199655,3.18425447,67525.0,67524.0,7.29439619]
[1722292199829,3.18425447,67525.0,67524.0,7.21655919]
[1722292200139,3.18425447,67525.0,67524.0,7.11014626]
[1722292200495,3.18352629,67525.0,67524.0,7.09133703]
[1722292200914,3.16952629,67525.0,67524.0,6.92381903]
[1722292201112,3.15068834,67525.0,67524.0,6.60469273]
[1722292201272,3.16952629,67525.0,67524.0,5.63736942]
[1722292201472,3.22734663,67525.0,67524.0,5.5703855]
[1722292201900,3.22734663,67525.0,67524.0,5.48947764]
[1722292202101,3.22734663,67525.0,67524.0,5.40279441]
[1722292202311,3.22734663,67525.0,67524.0,5.02351215]
[1722292202312,3.20410927,67525.0,67524.0,5.02351215]
[1722292202523,3.19963216,67525.0,67524.0,5.00651215]
[1722292202731,3.23767823,67525.0,67524.0,5.00651215]
[1722292203104,3.20470511,67525.0,67524.0,5.00651215]
[1722292203342,3.20470511,67525.0,67524.0,4.88803615]
[1722292203518,3.3235435,67525.0,67524.0,4.85841715]
[1722292203743,3.20470511,67525.0,67524.0,4.85841715]
[1722292203951,3.01778538,67525.0,67524.0,4.85841715]
[1722292204157,2.97053538,67525.0,67524.0,4.85841715]
[1722292204290,2.95653538,67525.0,67524.0,4.81641715]
[1722292204504,2.97053538,67525.0,67524.0,4.81641715]
[1722292204689,3.11363477,67525.0,67524.0,4.81641715]
[1722292205373,3.02763477,67525.0,67524.0,4.81641715]
[1722292205794,2.91273577,67525.0,67524.0,4.81641715]
[1722292205974,3.05203068,67525.0,67524.0,4.81641715]
[1722292206386,2.90893129,67525.0,67524.0,4.81641715]
[1722292206588,2.34724529,67525.0,67524.0,4.81641715]
[1722292206995,2.34240734,67525.0,67524.0,4.81641715]
[1722292207345,2.32840734,67525.0,67524.0,4.81641715]
[1722292207555,2.34240734,67525.0,67524.0,4.81641715]
[1722292207762,2.34724529,67525.0,67524.0,4.81641715]
[1722292207960,1.88095929,67525.0,67524.0,4.89911715]
[1722292208187,1.78530414,67525.0,67524.0,4.89911715]
[1722292209005,1.78530414,67525.0,67524.0,4.81641715]
[1722292209006,1.77149597,67525.0,67524.0,4.81641715]
[1722292209650,1.78549597,67525.0,67524.0,4.81641715]
[1722292209796,1.91459536,67525.0,67524.0,4.81641715]
[1722292210016,1.93759536,67525.0,67524.0,4.81641715]
[1722292210196,1.95159536,67525.0,67524.0,4.81641715]
[1722292210449,1.80849597,67525.0,67524.0,4.81641715]
[1722292210588,1.78965802,67525.0,67524.0,4.81641715]
[1722292211407,1.38347202,67525.0,67524.0,4.95791715]
[1722292211771,1.37447202,67525.0,67524.0,4.95791715]
[1722292211963,1.36047202,67525.0,67524.0,4.95791715]
[1722292212099,1.32164043,67525.0,67524.0,4.95791715]
[1722292212306,1.37421161,67525.0,67524.0,4.95791715]
[1722292212719,1.32164043,67525.0,67524.0,4.95791715]
[1722292212921,1.44464043,67525.0,67524.0,4.95791715]
[1722292213119,1.58773982,67525.0,67524.0,4.95791715]
[1722292213745,1.64031098,67525.0,67524.0,4.95791715]
[1722292214519,1.62631098,67525.0,67524.0,4.95791715]
[1722292214965,1.64031098,67525.0,67524.0,4.95791715]
[1722292215122,1.58773982,67525.0,67524.0,4.95791715]
[1722292215738,1.44464043,67525.0,67524.0,4.95791715]
[1722292216293,1.42139974,67525.0,67524.0,4.95791715]
[1722292217826,0.80602774,67525.0,67524.0,4.95791715]
[1722292218033,0.80344968,67525.0,67524.0,4.95791715]
[1722292218439,1.09963568,67525.0,67524.0,4.95791715]
[1722292218873,1.07163568,67525.0,67524.0,4.95791715]
[1722292219341,1.53348372,67525.0,67524.0,4.95791715]
[1722292219490,1.55648372,67525.0,67524.0,4.95791715]
[1722292220675,1.55840949,67525.0,67524.0,4.95791715]
[1722292222960,1.85459549,67525.0,67524.0,4.95791715]
[1722292224546,1.87783303,67525.0,67524.0,4.89561715]
[1722292226350,1.74017099,67525.0,67524.0,4.89561715]
[1722292229300,1.71693345,67525.0,67524.0,4.89561715]
[1722292229480,1.85006131,67525.0,67524.0,4.89561715]
[1722292229685,1.71693345,67525.0,67524.0,4.89561715]
[1722292230391,1.85005672,67525.0,67524.0,4.89561715]
[1722292230592,1.71693345,67525.0,67524.0,4.89561715]
[1722292230790,1.85005766,67525.0,67524.0,4.89561715]
[1722292232078,1.71693345,67525.0,67524.0,4.89561715]
[1722292232285,1.92501241,67525.0,67524.0,4.89561715]
[1722292232469,1.7918882,67525.0,67524.0,4.89561715]
[1722292232664,1.90177464,67525.0,67524.0,4.89561715]
[1722292233080,1.76865043,67525.0,67524.0,4.89561715]
[1722292234708,1.91174982,67525.0,67524.0,4.89561715]
[1722292235109,2.13077866,67525.0,67524.0,4.89561715]
[1722292235516,2.1540165,67525.0,67524.0,4.89561715]
[1722292236691,1.8777929,67525.0,67524.0,4.89561715]
[1722292236837,2.01091711,67525.0,67524.0,4.89561715]
[1722292237441,1.74017129,67525.0,67524.0,4.89561715]
[1722292237642,2.01140957,67525.0,67524.0,4.89561715]
[1722292239748,1.87831768,67525.0,67524.0,4.89561715]
[1722292240554,1.85507984,67525.0,67524.0,4.89561715]
[1722292241003,1.99817923,67525.0,67524.0,4.89561715]
[1722292241350,1.85437895,67525.0,67524.0,4.89561715]
[1722292241553,1.55819295,67525.0,67524.0,4.89561715]
[1722292243511,1.69127764,67525.0,67524.0,4.89561715]
[1722292244003,1.71451552,67525.0,67524.0,4.89561715]
[1722292244241,1.71470365,67525.0,67524.0,4.89561715]
[1722292245460,1.71470365,67525.0,67524.0,5.0515792]
[1722292245461,1.23918202,67525.0,67524.0,5.0515792]
[1722292245816,1.23918202,67525.0,67524.0,5.04641715]
[1722292246017,1.23918202,67525.0,67524.0,5.0515792]
[1722292246559,1.15300619,67525.0,67524.0,5.0515792]
[1722292247490,1.10086056,67525.0,67524.0,5.0515792]
[1722292247695,1.15266947,67525.0,67524.0,5.0515792]
[1722292248198,0.85648347,67525.0,67524.0,5.0515792]
[1722292248396,1.15266947,67525.0,67524.0,5.0515792]
[1722292249433,0.56029747,67525.0,67524.0,5.0515792]
[1722292249631,0.85648347,67525.0,67524.0,5.0615792]
[1722292250427,0.84248347,67525.0,67524.0,5.0615792]
[1722292250779,0.85636308,67525.0,67524.0,5.0615792]
[1722292251784,0.56017708,67525.0,67524.0,5.0615792]
[1722292251986,0.85636308,67525.0,67524.0,5.0615792]
[1722292252188,0.87959989,67525.0,67524.0,5.0615792]
[1722292253215,0.85636308,67525.0,67524.0,5.0615792]
[1722292253692,0.84236308,67525.0,67524.0,5.0615792]
[1722292254090,0.85614711,67525.0,67524.0,5.0615792]
[1722292256515,0.87938392,67525.0,67524.0,5.0615792]
[1722292257698,0.85610561,67525.0,67524.0,5.0615792]
[1722292260284,1.15229161,67525.0,67524.0,5.0615792]
[1722292260740,1.15215586,67525.0,67524.0,5.0615792]
[1722292260912,1.17539267,67525.0,67524.0,4.96031715]
[1722292261871,1.74803507,67525.0,67524.0,4.81641715]
[1722292262061,1.61467806,67525.0,67524.0,4.81641715]
[1722292262275,1.56338276,67525.0,67524.0,4.81641715]
[1722292262654,1.61466586,67525.0,67524.0,4.81641715]
[1722292262860,1.47156647,67525.0,67524.0,4.81641715]
[1722292262987,1.47626811,67525.0,67524.0,4.81641715]
[1722292263594,1.38781194,67525.0,67524.0,4.81641715]
[1722292263820,1.49689066,67525.0,67524.0,4.81641715]
[1722292264222,1.58155205,67525.0,67524.0,4.81641715]
[1722292264382,1.71981349,67525.0,67524.0,4.81641715]
[1722292264587,1.69657668,67525.0,67524.0,4.81641715]
[1722292265052,1.99276268,67525.0,67524.0,4.81641715]
[1722292266323,1.99232152,67525.0,67524.0,4.81641715]
[1722292267115,1.84922213,67525.0,67524.0,4.81641715]
[1722292268122,1.57627425,67525.0,67524.0,4.81641715]
[1722292268524,1.57627425,67525.0,67524.0,4.96041715]
[1722292269355,1.57627425,67525.0,67524.0,4.89781715]
[1722292269559,1.55430021,67525.0,67524.0,4.89781715]
[1722292270117,1.53130021,67525.0,67524.0,4.89781715]
[1722292270267,1.44594915,67525.0,67524.0,4.89781715]
[1722292271257,1.14976315,67525.0,67524.0,4.9655792]
[1722292271621,0.85357715,67525.0,67524.0,4.9755792]
[1722292272764,0.85323929,67525.0,67524.0,4.9755792]
[1722292272969,0.87647572,67525.0,67524.0,4.9755792]
[1722292273165,0.82553354,67525.0,67524.0,4.9755792]
[1722292273379,0.87647572,67525.0,67524.0,4.9755792]
[1722292274782,1.17241739,67525.0,67524.0,4.9755792]
[1722292274982,1.17241739,67525.0,67524.0,4.96041715]
[1722292275364,0.87623139,67525.0,67524.0,4.96041715]
[1722292275762,1.17241739,67525.0,67524.0,4.96041715]
[1722292276599,1.14918096,67525.0,67524.0,4.96041715]
[1722292278211,1.14889016,67525.0,67524.0,4.96041715]
[1722292279566,1.14894412,67525.0,67524.0,4.96041715]
[1722292280148,1.17218055,67525.0,67524.0,4.96041715]
[1722292280842,1.17298066,67525.0,67524.0,4.96041715]
[1722292281549,1.14974423,67525.0,67524.0,4.96041715]
[1722292282914,1.14956123,67525.0,67524.0,4.96041715]
[1722292283821,1.44574723,67525.0,67524.0,4.81641715]
[1722292284010,1.4689837,67525.0,67524.0,4.81641715]
[1722292284135,1.44574723,67525.0,67524.0,4.81641715]
[1722292284980,1.58884662,67525.0,67524.0,4.81641715]
[1722292285180,1.50934723,67525.0,67524.0,4.81641715]
[1722292286211,1.50832968,67525.0,67524.0,4.81641715]
[1722292286415,1.44472968,67525.0,67524.0,4.81641715]
[1722292286965,2.38061951,67525.0,67524.0,4.81641715]
[1722292287220,2.47277649,67525.0,67524.0,4.63805195]
[1722292287387,2.55673826,67525.0,67524.0,4.63805195]
[1722292287788,2.55673826,67525.0,67524.0,4.6201074]
[1722292287971,2.45663826,67525.0,67524.0,4.6201074]
[1722292288184,2.51950079,67525.0,67524.0,4.6201074]
[1722292288588,2.53350079,67525.0,67524.0,4.6201074]
[1722292288790,2.52866284,67525.0,67524.0,4.6201074]
[1722292288996,2.51466284,67525.0,67524.0,4.6201074]
[1722292289200,2.53350079,67525.0,67524.0,4.6201074]
[1722292289408,2.53894872,67525.0,67524.0,4.6201074]
[1722292289987,2.53894872,67525.0,67524.0,4.5673374]
[1722292290189,3.52723472,67525.0,67524.0,4.5673374]
[1722292290541,3.31919486,67525.0,67524.0,4.5673374]
[1722292290741,3.25398486,67525.0,67524.0,4.5673374]
[1722292290941,3.21798486,67525.0,67524.0,4.5673374]
[1722292291518,3.47661143,67525.0,67524.0,4.4830384]
[1722292291683,3.50034398,67525.0,67524.0,4.35268558]
[1722292291882,3.65038361,67525.0,67524.0,4.35268558]
[1722292292081,3.49550603,67525.0,67524.0,4.35268558]
[1722292292333,3.47234398,67525.0,67524.0,4.35268558]
[1722292292550,3.33367382,67525.0,67524.0,4.35268558]
[1722292292778,3.48670469,67525.0,67524.0,4.35268558]
[1722292292995,3.47270469,67525.0,67524.0,4.35268558]
[1722292293250,3.48670469,67525.0,67524.0,4.35268558]
[1722292293448,3.48670469,67525.0,67524.0,4.32982983]
[1722292293728,3.48670469,67525.0,67524.0,3.99819483]
[1722292293729,3.78670469,67525.0,67524.0,3.99819483]
[1722292293865,3.80070469,67525.0,67524.0,2.75082535]
[1722292294084,3.80070469,67525.0,67524.0,2.60545884]
[1722292294275,3.70060469,67525.0,67524.0,2.48698284]
[1722292294561,3.78670469,67525.0,67524.0,2.45736384]
[1722292294916,3.77270469,67525.0,67524.0,2.45736384]
[1722292295117,3.80994697,67525.0,67524.0,2.45736384]
[1722292295337,3.82394697,67525.0,67524.0,2.30926884]
[1722292295537,3.25188369,67525.0,67524.0,2.29684674]
[1722292295740,3.32398369,67525.0,67524.0,2.29684674]
[1722292295965,3.2891177,67525.0,67524.0,2.29684674]
[1722292296165,5.9875487,67525.0,67524.0,2.29684674]
[1722292296446,4.89186231,67525.0,67524.0,2.14875174]
[1722292296674,4.86386231,67525.0,67524.0,2.14875174]
[1722292296899,4.87786231,67525.0,67524.0,2.14875174]
[1722292297135,4.70321031,67525.0,67524.0,2.14875174]
[1722292297247,4.78931031,67525.0,67524.0,2.11913274]
[1722292297447,4.9324097,67525.0,67524.0,2.05989474]
[1722292297829,4.9184097,67525.0,67524.0,2.00065674]
[1722292297964,4.9324097,67525.0,67524.0,2.00065674]
[1722292298375,4.91357175,67525.0,67524.0,1.79764174]
[1722292298699,4.93681429,67525.0,67524.0,1.79764174]
[1722292298865,4.95081429,67525.0,67524.0,1.79764174]
[1722292299060,4.81367629,67525.0,67524.0,1.79764174]
[1722292299307,4.95660782,67525.0,67524.0,1.79764174]
[1722292299546,4.95660782,67525.0,67524.0,1.73840374]
[1722292299744,4.95660782,67525.0,67524.0,1.70878474]
[1722292300068,4.93336528,67525.0,67524.0,1.67916574]
[1722292300690,4.91936528,67525.0,67524.0,1.67916574]
[1722292300928,4.93336528,67525.0,67524.0,1.67916574]
[1722292301291,4.91936528,67525.0,67524.0,1.67916574]
[1722292301494,4.93336528,67525.0,67524.0,1.67916574]
[1722292301693,4.61803828,67525.0,67524.0,1.67916574]
[1722292302355,4.4799447,67525.0,67524.0,1.67916574]
[1722292302669,4.61869425,67525.0,67524.0,1.67916574]
[1722292302817,4.63417974,67525.0,67524.0,1.67916574]
[1722292303023,4.65742229,67525.0,67524.0,1.67916574]
[1722292304085,4.65742229,67525.0,67524.0,1.6068698]
[1722292304633,4.65742229,67525.0,67524.0,1.47200807]
[1722292305400,3.3649509,67525.0,67524.0,1.47200807]
[1722292305706,3.36689439,67525.0,67524.0,1.47200807]
[1722292305832,3.31084276,67525.0,67524.0,1.47200807]
[1722292306275,3.31143215,67525.0,67524.0,1.47200807]
[1722292306477,3.28125215,67525.0,67524.0,1.47200807]
[1722292306677,3.18088156,67525.0,67524.0,1.47200807]
[1722292308523,3.26803026,67525.0,67524.0,1.47200807]
[1722292308867,3.12752656,67525.0,67524.0,1.47200807]
[1722292309093,3.26769643,67525.0,67524.0,1.47200807]
[1722292309452,3.40315922,67525.0,67524.0,1.47200807]
[1722292310003,3.41240147,67525.0,67524.0,1.47200807]
[1722292310423,3.42640147,67525.0,67524.0,1.47200807]
[1722292310628,3.41240147,67525.0,67524.0,1.47200807]
[1722292310827,3.38915922,67525.0,67524.0,1.47200807]
[1722292311149,3.30581902,67525.0,67524.0,1.47200807]
[1722292311355,3.30581902,67525.0,67524.0,1.37609807]
[1722292311356,3.25718998,67525.0,67524.0,1.37609807]
[1722292311493,3.27118998,67525.0,67524.0,1.37609807]
[1722292311889,3.27118998,67525.0,67524.0,1.35734808]
[1722292312122,3.26635203,67525.0,67524.0,1.35734808]
[1722292312315,3.27118998,67525.0,67524.0,1.35734808]
[1722292313132,3.94353898,67525.0,67524.0,1.31686808]
[1722292313528,4.07642028,67525.0,67524.0,1.29935008]
[1722292314009,3.96678123,67525.0,67524.0,1.29935008]
[1722292314430,3.92767523,67525.0,67524.0,1.29935008]
[1722292315246,3.86731998,67525.0,67524.0,1.29935008]
[1722292315445,3.72715011,67525.0,67524.0,1.29935008]
[1722292315691,3.86684587,67525.0,67524.0,1.29935008]
[1722292316698,4.22473787,67525.0,67524.0,1.29935008]
[1722292317937,4.22473787,67525.0,67524.0,1.28277008]
[1722292318693,4.21220787,67525.0,67524.0,1.28277008]
[1722292318899,4.21252362,67525.0,67524.0,1.28277008]
[1722292319664,4.21252362,67525.0,67524.0,1.23487008]
[1722292320255,4.21252362,67525.0,67524.0,1.17951008]
[1722292320790,4.21252362,67525.0,67524.0,1.11942424]
[1722292320962,4.21252362,67525.0,67524.0,1.03799556]
[1722292321365,4.21253151,67525.0,67524.0,1.03799556]
[1722292321730,4.23577394,67525.0,67524.0,1.03799556]
[1722292322111,4.21253151,67525.0,67524.0,0.77628056]
[1722292322357,4.23577394,67525.0,67524.0,0.77628056]
[1722292322683,0.01483795,67503.0,67492.0,0.44444115]
[1722292322978,0.75559995,67498.0,67497.0,0.0827]
[1722292323129,0.75564295,67494.0,67490.0,0.009174]
[1722292323337,2.11107113,67494.0,67490.0,0.009174]
[1722292323550,2.11107113,67494.0,67469.0,0.07154355]
[1722292323551,0.444582,67479.0,67478.0,0.157574]
[1722292323751,1.20743218,67479.0,67478.0,0.157574]
[1722292323953,1.50382018,67479.0,67478.0,0.157574]
[1722292324177,1.50497632,67479.0,67478.0,0.157574]
[1722292325473,1.5282273,67479.0,67478.0,0.157574]
[1722292325633,1.5422273,67479.0,67478.0,0.157574]
[1722292326260,1.99171469,67479.0,67478.0,0.153374]
[1722292326466,2.01955264,67479.0,67478.0,0.086974]
[1722292326672,1.8716153,67479.0,67478.0,0.086974]
[1722292326874,1.88526518,67479.0,67478.0,0.086974]
[1722292327520,1.86790737,67479.0,67478.0,0.086974]
[1722292328340,1.88674532,67479.0,67478.0,0.086974]
[1722292328538,2.02984471,67479.0,67478.0,0.086974]
[1722292329251,2.04384471,67479.0,67478.0,0.086974]
[1722292329722,2.02758921,67479.0,67478.0,0.086974]
[1722292330168,2.04384471,67479.0,67478.0,0.086974]
[1722292330610,2.04384471,67479.0,67478.0,0.009174]
[1722292330834,2.02944183,67479.0,67478.0,0.009174]
[1722292331096,2.04344183,67479.0,67478.0,0.009174]
[1722292331313,2.02013139,67479.0,67478.0,0.009174]
[1722292331503,2.00613139,67479.0,67478.0,0.009174]
[1722292331703,2.02013139,67479.0,67478.0,0.009174]
[1722292331858,2.00613139,67479.0,67478.0,0.009174]
[1722292332442,2.02013139,67479.0,67478.0,0.009174]
[1722292332643,2.02013114,67479.0,67478.0,0.009174]
[1722292333091,2.31651914,67479.0,67478.0,0.009174]
[1722292333245,2.31651914,67479.0,67478.0,0.00402079]
[1722292333442,2.40583964,67479.0,67478.0,0.00402079]
[1722292333701,3.07134364,67479.0,67478.0,0.00402079]
[1722292333920,3.05734364,67479.0,67478.0,0.00402079]
[1722292334119,3.08083646,67479.0,67478.0,0.00402079]
[1722292334328,1.34883995,67466.0,67465.0,0.0867]